[Event "Bijnor Open 2023"]
[Site "Bijnor"]
[Date "2023.12.01"]
[Round "4.3"]
[White "Verma Ashu"]
[Black "Lalit Jindal"]
[Result "1-0"]
[ECO "C14"]
[WhiteElo "1674"]
[BlackElo "1332"]
[Annotator "NA RC"]
[PlyCount "95"]
[EventDate "2023.11.29"]
[EventCountry "IND"]
[SourceTitle "playchess.com"]
[Source "ChessBase"]
[SourceQuality "1"]
[TimeControl "5400+30"]

1. e4 {[%emt 0:02:18]} e6 {[%emt 0:00:08]} 2. d4 {[%emt 0:00:06]} d5 {[%emt 0:00:16]} 3. Nc3 {[%emt 0:00:06]} Nf6 {[%emt 0:00:08]} 4. Bg5 {[%emt 0:00:34]} Be7 {[%emt 0:00:02]} 5. e5 {[%emt 0:00:18]} Nfd7 {[%emt 0:00:35]} 6. Bxe7 {[%emt 0:00:03]} Qxe7 {[%emt 0:00:03]} 7. Bd3 {[%emt 0:00:44]} a6 {[%emt 0:00:05]} 8. Nce2 {[%emt 0:01:53]} c5 {[%emt 0:00:06]} 9. c3 {[%emt 0:00:33]} Nc6 {[%emt 0:00:02]} 10. a3 {[%emt 0:00:54]} O-O {[%emt 0:01:50]} 11. f4 {[%emt 0:01:15]} f5 {[%emt 0:00:01]} 12. Nf3 {[%emt 0:00:24]} c4 {[%emt 0:02:09]} 13. Bc2 {[%emt 0:00:18]} b5 {[%emt 0:00:00]} 14. O-O {[%emt 0:11:40]} a5 {[%emt 0:01:36]} 15. Kh1 {[%emt 0:00:05]} Kh8 {[%emt 0:00:28]} 16. Rg1 {[%emt 0:01:15]} Rg8 {[%emt 0:01:13]} 17. g4 {[%emt 0:00:30]} g6 {[%emt 0:00:03]} 18. Qf1 {[%emt 0:04:29]} fxg4 {[%emt 0:06:14]} 19. Rxg4 {[%emt 0:00:04]} Nf8 {[%emt 0:00:20]} 20. Qh3 {[%emt 0:01:08]} Ra7 {[%emt 0:00:10]} 21. Rag1 {[%emt 0:02:25]} Qe8 {[%emt 0:00:49]} 22. Qh6 {[%emt 0:08:57]} Rag7 {[%emt 0:00:18]} 23. Ng3 {[%emt 0:07:03]} Qe7 {[%emt 0:03:31]} 24. Nf1 {[%emt 0:00:33]} Nd8 {[%emt 0:00:11]} 25. Ng5 {[%emt 0:00:07]} Bd7 {[%emt 0:02:22]} 26. Ne3 {[%emt 0:00:47]} Be8 {[%emt 0:00:34]} 27. Rh4 {[%emt 0:01:51]} Nf7 {[%emt 0:00:50]} 28. Nxf7+ {[%emt 0:00:22]} Qxf7 {[%emt 0:00:11]} 29. Ng4 {[%emt 0:00:35]} g5 {[%emt 0:01:33]} 30. fxg5 {[%emt 0:11:15]} Rxg5 {[%emt 0:02:28]} 31. h3 {[%emt 0:02:41]} Qf3+ {[%emt 0:06:13]} 32. Rg2 {[%emt 0:00:00]} Qf1+ {[%emt 0:01:13]} 33. Kh2 {[%emt 0:00:00]} Qf4+ {[%emt 0:00:14]} 34. Kg1 {[%emt 0:00:00]} Qc1+ {[%emt 0:12:18]} 35. Kh2 {[%emt 0:00:00]} Bg6 {[%emt 0:01:07]} 36. Rf2 {[%emt 0:19:11]} Bxc2 {[%emt 0:00:59]} 37. Rxf8 {[%emt 0:03:57]} Qd2+ {[%emt 0:00:02]} 38. Kg3 {[%emt 0:01:02]} Bg6 {[%emt 0:04:12]} 39. Rf2 {[%emt 0:03:08]} Qc1 {[%emt 0:04:26]} 40. Kh2 {[%emt 0:03:48]} Be4 {[%emt 0:04:18]} 41. Qf6+ {[%emt 0:00:03]} R5g7 {[%emt 0:00:01]} 42. Rh5 {[%emt 0:03:30]} Re8 {[%emt 0:07:55]} 43. Kg3 {[%emt 0:01:15]} Qg1+ {[%emt 0:18:20]} 44. Kh4 {[%emt 0:00:05]} Bg6 {[%emt 0:00:21]} 45. Rg5 {[%emt 0:00:58]} Qb1 {[%emt 0:00:04]} 46. Nh6 {[%emt 0:02:04]} Qe4+ {[%emt 0:00:19]} 47. Rg4 {[%emt 0:00:27]} Qe1 {[%emt 0:00:41]} 48. Rg3 {[%emt 0:01:39]} 1-0

[Event "Bijnor Open 2023"]
[Site "Bijnor"]
[Date "2023.12.01"]
[Round "4.4"]
[White "Ujjwal Chauhan"]
[Black "Gopal Krishna Maheshwari"]
[Result "0-1"]
[ECO "C50"]
[WhiteElo "1243"]
[BlackElo "1627"]
[Annotator "NA RC"]
[PlyCount "62"]
[EventDate "2023.11.29"]
[EventCountry "IND"]
[SourceTitle "playchess.com"]
[Source "ChessBase"]
[SourceQuality "1"]
[TimeControl "5400+30"]

1. e4 {[%emt 0:00:05]} e5 {[%emt 0:00:01]} 2. Nf3 {[%emt 0:00:08]} Nc6 {[%emt 0:00:03]} 3. Bc4 {[%emt 0:00:08]} Bc5 {[%emt 0:00:47]} 4. d3 {[%emt 0:00:10]} Nf6 {[%emt 0:00:09]} 5. Nc3 {[%emt 0:00:50]} d6 {[%emt 0:00:20]} 6. h3 {[%emt 0:00:39]} Be6 {[%emt 0:01:52]} 7. Bb3 {[%emt 0:00:15]} Bb6 {[%emt 0:04:28]} 8. Be3 {[%emt 0:01:01]} d5 {[%emt 0:02:46]} 9. exd5 {[%emt 0:02:41]} Nxd5 {[%emt 0:00:04]} 10. Nxd5 {[%emt 0:02:12]} Bxd5 {[%emt 0:00:03]} 11. Bxd5 {[%emt 0:00:13]} Qxd5 {[%emt 0:00:07]} 12. Qd2 {[%emt 0:00:08]} O-O-O {[%emt 0:00:26]} 13. O-O {[%emt 0:06:06]} f6 {[%emt 0:01:48]} 14. Bxb6 {[%emt 0:01:14]} axb6 {[%emt 0:00:05]} 15. Qc3 {[%emt 0:00:36]} g5 {[%emt 0:00:59]} 16. Nd2 {[%emt 0:03:01]} Nd4 {[%emt 0:01:13]} 17. Rfe1 {[%emt 0:01:34]} h5 {[%emt 0:09:45]} 18. Nc4 {[%emt 0:03:29]} Kb8 {[%emt 0:02:36]} 19. a4 {[%emt 0:00:28]} g4 {[%emt 0:05:59]} 20. h4 {[%emt 0:00:40]} Rhg8 {[%emt 0:01:33]} 21. Ne3 {[%emt 0:03:03]} Qd7 {[%emt 0:02:11]} 22. a5 {[%emt 0:00:59]} b5 {[%emt 0:00:21]} 23. a6 {[%emt 0:02:00]} b6 {[%emt 0:00:23]} 24. a7+ {[%emt 0:02:27]} Ka8 {[%emt 0:00:43]} 25. Qa3 {[%emt 0:00:49]} f5 {[%emt 0:03:12]} 26. c3 {[%emt 0:16:00]} Nc6 {[%emt 0:16:26]} 27. c4 {[%emt 0:05:11]} g3 {[%emt 0:13:02]} 28. cxb5 {[%emt 0:07:54]} gxf2+ {[%emt 0:00:56]} 29. Kxf2 {[%emt 0:00:18]} Nd4 {[%emt 0:01:51]} 30. Rac1 {[%emt 0:05:53]} f4 {[%emt 0:01:12]} 31. Nc2 {[%emt 0:03:52]} Rxg2+ {[%emt 0:00:59]} 0-1

[Event "Bijnor Open 2023"]
[Site "Bijnor"]
[Date "2023.12.01"]
[Round "4.5"]
[White "Sparsh Yadav"]
[Black "Manish Pal"]
[Result "1-0"]
[ECO "C05"]
[WhiteElo "1598"]
[BlackElo "1321"]
[Annotator "NA RC"]
[PlyCount "53"]
[EventDate "2023.11.29"]
[EventCountry "IND"]
[SourceTitle "playchess.com"]
[Source "ChessBase"]
[SourceQuality "1"]
[TimeControl "5400+30"]

1. e4 {[%emt 0:00:13]} e6 {[%emt 0:00:19]} 2. d4 {[%emt 0:00:26]} d5 {[%emt 0:00:09]} 3. Nd2 {[%emt 0:00:43]} Nf6 {[%emt 0:01:35]} 4. e5 {[%emt 0:00:34]} Nfd7 {[%emt 0:00:33]} 5. f4 {[%emt 0:00:28]} c5 {[%emt 0:00:37]} 6. c3 {[%emt 0:00:12]} Nc6 {[%emt 0:00:38]} 7. Ne2 {[%emt 0:00:23]} cxd4 {[%emt 0:04:12]} 8. Nxd4 {[%emt 0:01:18]} Ndxe5 {[%emt 0:07:25]} 9. fxe5 {[%emt 0:00:40]} Nxd4 {[%emt 0:00:05]} 10. cxd4 {[%emt 0:03:46]} Qh4+ {[%emt 0:00:11]} 11. g3 {[%emt 0:00:56]} Qxd4 {[%emt 0:00:35]} 12. Bb5+ {[%emt 0:08:20]} Kd8 {[%emt 0:02:34]} 13. Qe2 {[%emt 0:00:41]} Bb4 {[%emt 0:04:01]} 14. Rf1 {[%emt 0:00:51]} Rf8 {[%emt 0:01:11]} 15. a3 {[%emt 0:00:15]} Ba5 {[%emt 0:00:10]} 16. Rb1 {[%emt 0:01:02]} a6 {[%emt 0:01:38]} 17. Bd3 {[%emt 0:00:19]} Bd7 {[%emt 0:00:17]} 18. b4 {[%emt 0:00:13]} Bc7 {[%emt 0:00:51]} 19. Bb2 {[%emt 0:00:10]} Qb6 {[%emt 0:02:32]} 20. Nb3 {[%emt 0:00:29]} Rc8 {[%emt 0:02:12]} 21. Bd4 {[%emt 0:01:37]} Qc6 {[%emt 0:00:38]} 22. Bc5 {[%emt 0:00:30]} Ke8 {[%emt 0:01:12]} 23. Nd4 {[%emt 0:01:02]} Qa4 {[%emt 0:01:18]} 24. Bxf8 {[%emt 0:00:35]} Kxf8 {[%emt 0:00:05]} 25. Qh5 {[%emt 0:00:27]} Be8 {[%emt 0:03:59]} 26. Nxe6+ {[%emt 0:00:15]} Ke7 {[%emt 0:00:04]} 27. Qg5+ {[%emt 0:01:13]} 1-0

[Event "Bijnor Open 2023"]
[Site "Bijnor"]
[Date "2023.12.01"]
[Round "4.6"]
[White "Ayush Saxena"]
[Black "Aabhas Kumar Srivastava"]
[Result "1-0"]
[ECO "B13"]
[WhiteElo "1567"]
[BlackElo "1216"]
[Annotator "NA RC"]
[PlyCount "79"]
[EventDate "2023.11.29"]
[EventCountry "IND"]
[SourceTitle "playchess.com"]
[Source "ChessBase"]
[SourceQuality "1"]
[TimeControl "5400+30"]

1. e4 {[%emt 0:00:01]} c6 {[%emt 0:00:13]} 2. d4 {[%emt 0:00:04]} d5 {[%emt 0:00:06]} 3. exd5 {[%emt 0:00:05]} cxd5 {[%emt 0:00:11]} 4. c4 {[%emt 0:00:05]} e6 {[%emt 0:00:43]} 5. Nc3 {[%emt 0:00:07]} Nc6 {[%emt 0:00:18]} 6. Nf3 {[%emt 0:00:15]} Bb4 {[%emt 0:01:22]} 7. Bd2 {[%emt 0:00:35]} Nf6 {[%emt 0:00:53]} 8. Bd3 {[%emt 0:00:24]} O-O {[%emt 0:01:22]} 9. c5 {[%emt 0:01:11]} Ba5 {[%emt 0:02:06]} 10. O-O {[%emt 0:00:36]} Re8 {[%emt 0:00:50]} 11. Re1 {[%emt 0:00:28]} Bc7 {[%emt 0:01:35]} 12. Bg5 {[%emt 0:00:30]} Bd7 {[%emt 0:04:45]} 13. Ne5 {[%emt 0:01:42]} Bxe5 {[%emt 0:40:40]} 14. dxe5 {[%emt 0:00:18]} h6 {[%emt 0:01:41]} 15. Bh4 {[%emt 0:00:26]} g5 {[%emt 0:01:29]} 16. exf6 {[%emt 0:00:18]} Qxf6 {[%emt 0:01:37]} 17. Bg3 {[%emt 0:00:08]} Qg7 {[%emt 0:04:17]} 18. Nb5 {[%emt 0:00:14]} f5 {[%emt 0:03:12]} 19. Bd6 {[%emt 0:02:05]} Rac8 {[%emt 0:02:54]} 20. Nc7 {[%emt 0:00:08]} Rxc7 {[%emt 0:03:50]} 21. Bxc7 {[%emt 0:00:08]} e5 {[%emt 0:00:24]} 22. Qb3 {[%emt 0:00:57]} Bc8 {[%emt 0:05:24]} 23. Qxd5+ {[%emt 0:00:42]} Be6 {[%emt 0:00:49]} 24. Qd6 {[%emt 0:00:06]} Re7 {[%emt 0:02:57]} 25. Bb5 {[%emt 0:01:06]} Nd4 {[%emt 0:00:56]} 26. Qd8+ {[%emt 0:00:10]} Qf8 {[%emt 0:04:27]} 27. Qxf8+ {[%emt 0:01:10]} Kxf8 {[%emt 0:00:08]} 28. Bd6 {[%emt 0:00:05]} Nxb5 {[%emt 0:00:16]} 29. Bxe7+ {[%emt 0:00:05]} Kxe7 {[%emt 0:00:10]} 30. Rxe5 {[%emt 0:00:05]} Kf6 {[%emt 0:00:36]} 31. Re2 {[%emt 0:01:07]} Nd4 {[%emt 0:00:50]} 32. Rd2 {[%emt 0:00:12]} Nc6 {[%emt 0:00:18]} 33. Rd6 {[%emt 0:00:14]} Kf7 {[%emt 0:00:36]} 34. a3 {[%emt 0:00:17]} Ne5 {[%emt 0:00:53]} 35. Re1 {[%emt 0:00:22]} Kf6 {[%emt 0:00:12]} 36. b4 {[%emt 0:00:10]} f4 {[%emt 0:00:20]} 37. b5 {[%emt 0:00:14]} f3 {[%emt 0:00:09]} 38. c6 {[%emt 0:00:19]} bxc6 {[%emt 0:00:36]} 39. bxc6 {[%emt 0:00:06]} Kf5 {[%emt 0:00:25]} 40. Rxe6 {[%emt 0:00:16]} 1-0

[Event "Bijnor Open 2023"]
[Site "Bijnor"]
[Date "2023.12.01"]
[Round "4.7"]
[White "Ayaan Trikha"]
[Black "Mohammad Sameed"]
[Result "0-1"]
[ECO "E09"]
[WhiteElo "1212"]
[BlackElo "1468"]
[Annotator "NA RC"]
[PlyCount "144"]
[EventDate "2023.11.29"]
[EventCountry "IND"]
[SourceTitle "playchess.com"]
[Source "ChessBase"]
[SourceQuality "1"]
[TimeControl "5400+30"]

1. d4 {[%emt 0:00:02]} d5 {[%emt 0:00:07]} 2. c4 {[%emt 0:00:33]} e6 {[%emt 0:00:18]} 3. Nf3 {[%emt 0:00:17]} Nf6 {[%emt 0:00:09]} 4. g3 {[%emt 0:00:18]} c6 {[%emt 0:00:19]} 5. Bg2 {[%emt 0:00:04]} Be7 {[%emt 0:01:31]} 6. Qc2 {[%emt 0:00:11]} O-O {[%emt 0:00:21]} 7. O-O {[%emt 0:00:11]} Nbd7 {[%emt 0:00:28]} 8. Nbd2 {[%emt 0:00:06]} Re8 {[%emt 0:00:18]} 9. e4 {[%emt 0:00:09]} dxe4 {[%emt 0:00:15]} 10. Nxe4 {[%emt 0:00:10]} Nxe4 {[%emt 0:00:11]} 11. Qxe4 {[%emt 0:00:08]} Bf6 {[%emt 0:06:40]} 12. Rd1 {[%emt 0:01:49]} h6 {[%emt 0:12:12]} 13. Bf4 {[%emt 0:01:05]} Nb6 {[%emt 0:02:53]} 14. Rac1 {[%emt 0:04:58]} Bd7 {[%emt 0:05:41]} 15. Ne5 {[%emt 0:10:24]} Qe7 {[%emt 0:00:42]} 16. Ng4 {[%emt 0:03:32]} Bg5 {[%emt 0:01:12]} 17. Bxg5 {[%emt 0:04:53]} Qxg5 {[%emt 0:02:18]} 18. Ne5 {[%emt 0:00:43]} Rad8 {[%emt 0:01:00]} 19. c5 {[%emt 0:01:35]} Nc8 {[%emt 0:05:18]} 20. b4 {[%emt 0:03:06]} f6 {[%emt 0:04:32]} 21. Nc4 {[%emt 0:03:33]} Re7 {[%emt 0:06:08]} 22. h4 {[%emt 0:03:24]} Qh5 {[%emt 0:01:17]} 23. Bf3 {[%emt 0:02:31]} Qf7 {[%emt 0:01:23]} 24. a4 {[%emt 0:03:14]} Be8 {[%emt 0:05:28]} 25. Qe3 {[%emt 0:06:03]} a6 {[%emt 0:04:54]} 26. Rc2 {[%emt 0:11:45]} Red7 {[%emt 0:00:56]} 27. Bg4 {[%emt 0:01:46]} Re7 {[%emt 0:05:51]} 28. Re1 {[%emt 0:01:33]} Qg6 {[%emt 0:03:05]} 29. Bxe6+ {[%emt 0:00:46]} Bf7 {[%emt 0:00:43]} 30. Bxf7+ {[%emt 0:00:49]} Kxf7 {[%emt 0:00:18]} 31. Ne5+ {[%emt 0:10:10]} fxe5 {[%emt 0:00:42]} 32. Qb3+ {[%emt 0:00:22]} Qe6 {[%emt 0:02:36]} 33. Qf3+ {[%emt 0:00:23]} Qf6 {[%emt 0:00:36]} 34. Qb3+ {[%emt 0:00:22]} Kf8 {[%emt 0:01:25]} 35. dxe5 {[%emt 0:00:37]} Rxe5 {[%emt 0:00:49]} 36. Rxe5 {[%emt 0:00:21]} Qxe5 {[%emt 0:00:40]} 37. Qf3+ {[%emt 0:00:14]} Qf6 {[%emt 0:06:06]} 38. Qa3 {[%emt 0:01:23]} Rd1+ {[%emt 0:01:50]} 39. Kg2 {[%emt 0:02:15]} Qf5 {[%emt 0:00:57]} 40. Rc3 {[%emt 0:01:09]} Qd5+ {[%emt 0:01:31]} 41. Rf3+ {[%emt 0:00:16]} Kg8 {[%emt 0:00:08]} 42. Qe3 {[%emt 0:00:40]} Qd7 {[%emt 0:03:22]} 43. Qb3+ {[%emt 0:00:19]} Rd5 {[%emt 0:00:17]} 44. Re3 {[%emt 0:01:51]} Ne7 {[%emt 0:00:35]} 45. b5 {[%emt 0:00:38]} axb5 {[%emt 0:00:12]} 46. axb5 {[%emt 0:00:06]} Nf5 {[%emt 0:00:13]} 47. Rd3 {[%emt 0:00:46]} Qf7 {[%emt 0:03:25]} 48. bxc6 {[%emt 0:01:56]} Rxd3 {[%emt 0:01:28]} 49. Qxd3 {[%emt 0:00:29]} bxc6 {[%emt 0:00:07]} 50. Kh3 {[%emt 0:02:46]} Qd5 {[%emt 0:01:12]} 51. Qe2 {[%emt 0:02:47]} Qxc5 {[%emt 0:02:15]} 52. Qe8+ {[%emt 0:02:07]} Kh7 {[%emt 0:00:49]} 53. Qe2 {[%emt 0:00:36]} Nd4 {[%emt 0:01:29]} 54. Qe1 {[%emt 0:01:20]} Qd5 {[%emt 0:01:39]} 55. Qd1 {[%emt 0:01:10]} c5 {[%emt 0:00:53]} 56. Qb1+ {[%emt 0:01:10]} Qf5+ {[%emt 0:00:16]} 57. Qxf5+ {[%emt 0:00:02]} Nxf5 {[%emt 0:00:13]} 58. Kg4 {[%emt 0:00:09]} c4 {[%emt 0:00:57]} 59. Kxf5 {[%emt 0:00:08]} c3 {[%emt 0:00:05]} 60. f4 {[%emt 0:00:09]} c2 {[%emt 0:00:11]} 61. h5 {[%emt 0:00:19]} c1=Q {[%emt 0:00:29]} 62. Kg4 {[%emt 0:00:09]} Qc8+ {[%emt 0:00:20]} 63. Kh4 {[%emt 0:00:28]} Qf5 {[%emt 0:00:28]} 64. g4 {[%emt 0:00:11]} Qxf4 {[%emt 0:00:25]} 65. Kh3 {[%emt 0:00:03]} Qf2 {[%emt 0:00:56]} 66. g5 {[%emt 0:00:03]} hxg5 {[%emt 0:00:16]} 67. Kg4 {[%emt 0:00:04]} Qf4+ {[%emt 0:00:09]} 68. Kh3 {[%emt 0:00:05]} Qf3+ {[%emt 0:00:14]} 69. Kh2 {[%emt 0:00:03]} g4 {[%emt 0:00:15]} 70. h6 {[%emt 0:00:09]} Qf2+ {[%emt 0:00:09]} 71. Kh1 {[%emt 0:00:05]} g3 {[%emt 0:00:12]} 72. hxg7 {[%emt 0:00:03]} Qh2# {[%emt 0:00:08]} 0-1

[Event "Bijnor Open 2023"]
[Site "Bijnor"]
[Date "2023.12.01"]
[Round "4.8"]
[White "Nikhil Chopra"]
[Black "Amartya Kumar"]
[Result "0-1"]
[ECO "B51"]
[WhiteElo "1197"]
[BlackElo "1375"]
[Annotator "NA RC"]
[PlyCount "46"]
[EventDate "2023.11.29"]
[EventCountry "IND"]
[SourceTitle "playchess.com"]
[Source "ChessBase"]
[SourceQuality "1"]
[TimeControl "5400+30"]

1. e4 {[%emt 0:00:02]} c5 {[%emt 0:00:46]} 2. Nf3 {[%emt 0:00:09]} d6 {[%emt 0:00:04]} 3. c3 {[%emt 0:01:34]} Nf6 {[%emt 0:00:09]} 4. Bb5+ {[%emt 0:01:12]} Nbd7 {[%emt 0:02:40]} 5. d3 {[%emt 0:05:24]} a6 {[%emt 0:00:36]} 6. Ba4 {[%emt 0:01:34]} b5 {[%emt 0:01:34]} 7. Bc2 {[%emt 0:00:14]} Bb7 {[%emt 0:02:32]} 8. O-O {[%emt 0:00:45]} Rc8 {[%emt 0:01:08]} 9. Re1 {[%emt 0:01:11]} Ne5 {[%emt 0:05:28]} 10. Nxe5 {[%emt 0:02:26]} dxe5 {[%emt 0:00:02]} 11. f4 {[%emt 0:05:27]} exf4 {[%emt 0:00:42]} 12. Bxf4 {[%emt 0:00:13]} e6 {[%emt 0:01:08]} 13. a4 {[%emt 0:06:34]} b4 {[%emt 0:02:54]} 14. Nd2 {[%emt 0:10:41]} Be7 {[%emt 0:00:32]} 15. e5 {[%emt 0:07:15]} Nd5 {[%emt 0:01:49]} 16. Qf3 {[%emt 0:06:21]} O-O {[%emt 0:05:54]} 17. c4 {[%emt 0:00:48]} Nxf4 {[%emt 0:00:08]} 18. Qxf4 {[%emt 0:00:52]} Bg5 {[%emt 0:03:28]} 19. Qf2 {[%emt 0:00:37]} f6 {[%emt 0:02:35]} 20. Nf3 {[%emt 0:24:23]} Bxf3 {[%emt 0:00:57]} 21. gxf3 {[%emt 0:00:23]} fxe5 {[%emt 0:00:06]} 22. Rxe5 {[%emt 0:01:03]} Bf6 {[%emt 0:00:06]} 23. Rxc5 {[%emt 0:01:44]} Bd4 {[%emt 0:00:05]} 0-1

[Event "Bijnor Open 2023"]
[Site "Bijnor"]
[Date "2023.12.01"]
[Round "4.9"]
[White "Ravish Chaudhary"]
[Black "Jitendra, Kumar"]
[Result "0-1"]
[ECO "E62"]
[WhiteElo "1351"]
[BlackElo "1176"]
[Annotator "NA RC"]
[PlyCount "107"]
[EventDate "2023.11.29"]
[EventCountry "IND"]
[SourceTitle "playchess.com"]
[Source "ChessBase"]
[SourceQuality "1"]
[TimeControl "5400+30"]

1. d4 {[%emt 0:00:04]} g6 {[%emt 0:00:30]} 2. c4 {[%emt 0:00:05]} Nf6 {[%emt 0:00:21]} 3. Nf3 {[%emt 0:00:14]} Bg7 {[%emt 0:00:05]} 4. g3 {[%emt 0:00:07]} d6 {[%emt 0:00:21]} 5. Bg2 {[%emt 0:00:06]} O-O {[%emt 0:01:35]} 6. O-O {[%emt 0:00:12]} Na6 {[%emt 0:00:22]} 7. Nc3 {[%emt 0:00:47]} c6 {[%emt 0:02:27]} 8. a3 {[%emt 0:04:56]} Nc7 {[%emt 0:01:46]} 9. e4 {[%emt 0:02:24]} Nd7 {[%emt 0:04:15]} 10. b4 {[%emt 0:04:45]} e5 {[%emt 0:01:52]} 11. d5 {[%emt 0:00:21]} c5 {[%emt 0:00:38]} 12. Be3 {[%emt 0:02:56]} b6 {[%emt 0:01:06]} 13. Rb1 {[%emt 0:10:59]} f5 {[%emt 0:07:28]} 14. bxc5 {[%emt 0:14:01]} Nxc5 {[%emt 0:01:53]} 15. Bxc5 {[%emt 0:00:35]} bxc5 {[%emt 0:00:19]} 16. h4 {[%emt 0:01:48]} f4 {[%emt 0:01:07]} 17. Nb5 {[%emt 0:04:56]} a6 {[%emt 0:06:57]} 18. Nc3 {[%emt 0:03:20]} h6 {[%emt 0:00:26]} 19. Nd2 {[%emt 0:03:30]} g5 {[%emt 0:02:42]} 20. hxg5 {[%emt 0:01:20]} Qxg5 {[%emt 0:01:10]} 21. Nf3 {[%emt 0:00:35]} Qd8 {[%emt 0:02:55]} 22. Nh4 {[%emt 0:03:40]} Kh7 {[%emt 0:04:27]} 23. Na4 {[%emt 0:03:06]} Qg5 {[%emt 0:10:05]} 24. Nf3 {[%emt 0:03:06]} Qg4 {[%emt 0:02:11]} 25. Nh2 {[%emt 0:02:48]} Qg6 {[%emt 0:03:15]} 26. g4 {[%emt 0:02:03]} Rg8 {[%emt 0:06:26]} 27. f3 {[%emt 0:03:01]} Bf6 {[%emt 0:02:03]} 28. Kf2 {[%emt 0:00:29]} Bh4+ {[%emt 0:02:03]} 29. Ke2 {[%emt 0:00:31]} Qe8 {[%emt 0:04:49]} 30. Nb6 {[%emt 0:02:21]} Rb8 {[%emt 0:00:20]} 31. Qa4 {[%emt 0:03:13]} Qxa4 {[%emt 0:01:52]} 32. Nxa4 {[%emt 0:00:02]} Bb7 {[%emt 0:03:56]} 33. Rb6 {[%emt 0:01:31]} Ne8 {[%emt 0:02:50]} 34. Rfb1 {[%emt 0:01:31]} Rg7 {[%emt 0:00:12]} 35. Nf1 {[%emt 0:00:17]} Bd8 {[%emt 0:03:04]} 36. Rxa6 {[%emt 0:05:00]} Bxa6 {[%emt 0:00:58]} 37. Rxb8 {[%emt 0:00:04]} Bxc4+ {[%emt 0:00:21]} 38. Kd1 {[%emt 0:00:38]} Rd7 {[%emt 0:03:39]} 39. Nd2 {[%emt 0:01:23]} Bd3 {[%emt 0:01:04]} 40. Nb2 {[%emt 0:01:14]} Ba6 {[%emt 0:00:36]} 41. g5 {[%emt 0:00:33]} Ng7 {[%emt 0:03:19]} 42. gxh6 {[%emt 0:04:24]} Kxh6 {[%emt 0:00:18]} 43. Bh3 {[%emt 0:00:14]} Rb7 {[%emt 0:00:29]} 44. Rxd8 {[%emt 0:00:10]} Rxb2 {[%emt 0:00:21]} 45. Rxd6+ {[%emt 0:00:07]} Kg5 {[%emt 0:01:48]} 46. Rxa6 {[%emt 0:00:23]} Kh4 {[%emt 0:00:54]} 47. Bf1 {[%emt 0:02:06]} Kg5 {[%emt 0:00:46]} 48. Ra5 {[%emt 0:02:49]} Ra2 {[%emt 0:00:16]} 49. Rxc5 {[%emt 0:00:46]} Rxa3 {[%emt 0:00:25]} 50. d6 {[%emt 0:00:20]} Kf6 {[%emt 0:00:20]} 51. d7 {[%emt 0:00:23]} Ke7 {[%emt 0:01:34]} 52. Bb5 {[%emt 0:00:50]} Ra8 {[%emt 0:01:58]} 53. Rxe5+ {[%emt 0:01:17]} Kf6 {[%emt 0:00:56]} 54. Re8 {[%emt 0:00:54]} 0-1

[Event "Bijnor Open 2023"]
[Site "Bijnor"]
[Date "2023.12.01"]
[Round "4.10"]
[White "Rahul Suri"]
[Black "Ojas Joshi"]
[Result "1/2-1/2"]
[ECO "B52"]
[WhiteElo "1184"]
[BlackElo "1342"]
[Annotator "NA RC"]
[PlyCount "48"]
[EventDate "2023.11.29"]
[EventCountry "IND"]
[SourceTitle "playchess.com"]
[Source "ChessBase"]
[SourceQuality "1"]
[TimeControl "5400+30"]

1. e4 {[%emt 0:00:04]} c5 {[%emt 0:00:19]} 2. Nf3 {[%emt 0:00:21]} d6 {[%emt 0:00:05]} 3. Bb5+ {[%emt 0:00:46]} Bd7 {[%emt 0:00:06]} 4. Bxd7+ {[%emt 0:00:27]} Qxd7 {[%emt 0:00:08]} 5. c4 {[%emt 0:01:54]} Nc6 {[%emt 0:01:44]} 6. d4 {[%emt 0:04:32]} cxd4 {[%emt 0:00:07]} 7. Nxd4 {[%emt 0:00:06]} Nf6 {[%emt 0:01:07]} 8. Nc3 {[%emt 0:00:28]} g6 {[%emt 0:00:35]} 9. f3 {[%emt 0:03:30]} Bg7 {[%emt 0:00:15]} 10. Be3 {[%emt 0:00:35]} Ne5 {[%emt 0:03:47]} 11. b3 {[%emt 0:02:17]} O-O {[%emt 0:01:22]} 12. Qd2 {[%emt 0:00:51]} Rab8 {[%emt 0:11:17]} 13. O-O {[%emt 0:04:27]} Rfd8 {[%emt 0:10:57]} 14. Rac1 {[%emt 0:05:16]} e6 {[%emt 0:12:37]} 15. Nde2 {[%emt 0:08:50]} b6 {[%emt 0:05:11]} 16. Rfd1 {[%emt 0:02:34]} a6 {[%emt 0:08:57]} 17. a4 {[%emt 0:05:58]} Qb7 {[%emt 0:05:08]} 18. Bg5 {[%emt 0:07:23]} Rd7 {[%emt 0:03:14]} 19. Ng3 {[%emt 0:08:20]} Ne8 {[%emt 0:01:42]} 20. f4 {[%emt 0:08:28]} f6 {[%emt 0:03:20]} 21. Bh4 {[%emt 0:02:50]} Nf7 {[%emt 0:02:12]} 22. Nge2 {[%emt 0:03:37]} Rbd8 {[%emt 0:04:36]} 23. Qe3 {[%emt 0:03:20]} Bh6 {[%emt 0:01:35]} 24. Qh3 {[%emt 0:08:05]} Re7 {[%emt 0:02:44]} 1/2-1/2